bitfinex-derivatives/quotes_BTCF0:USTF0_20251111
["timestamp","ask_amount","ask_price","bid_price","bid_amount"]
[1762885013314,0.38873371,103310.0,103300.0,0.31262342]
[1762885013520,0.02053371,103310.0,103300.0,0.46904231]
[1762885013818,0.15656415,103320.0,103310.0,0.1554107]
[1762885013819,0.00014526,103320.0,103310.0,0.1554107]
[1762885014023,0.00014526,103320.0,103310.0,0.31402762]
[1762885014922,0.00114526,103320.0,103310.0,0.31402762]
[1762885015126,0.00214526,103320.0,103310.0,0.31402762]
[1762885016322,0.00214526,103320.0,103310.0,0.15760873]
[1762885016520,0.00214526,103320.0,103310.0,0.31402762]
[1762885016914,0.3682,103330.0,103310.0,1.02096832]
[1762885017122,0.3682,103330.0,103320.0,0.31062019]
[1762885017327,0.3682,103330.0,103320.0,0.46923711]
[1762885017720,0.05209453,103350.0,103340.0,0.1541726]
[1762885017914,0.20851342,103360.0,103350.0,0.1545632]
[1762885018218,0.68099778,103360.0,103350.0,0.05997803]
[1762885018523,0.77777168,103360.0,103350.0,0.15676123]
[1762885018716,0.4649339,103360.0,103350.0,0.15676123]
[1762885018922,0.62135279,103360.0,103350.0,0.15676123]
[1762885019123,0.4649339,103360.0,103350.0,0.15676123]
[1762885019323,0.62135279,103360.0,103350.0,0.15676123]
[1762885019828,0.77777168,103360.0,103350.0,0.05997803]
[1762885020620,0.77877168,103360.0,103350.0,0.01598803]
[1762885020825,0.92314423,103360.0,103350.0,0.00219803]
[1762885021027,0.0967832,103350.0,103340.0,0.05792526]
[1762885021223,0.40962098,103350.0,103340.0,0.00234329]
[1762885021422,0.55402681,103350.0,103340.0,0.00014526]
[1762885021932,0.0968113,103320.0,103310.0,0.05778]
[1762885022124,0.77776908,103320.0,103310.0,0.05997803]
[1762885022324,0.9236912,103320.0,103310.0,0.05997803]
[1762885022726,0.9236912,103320.0,103310.0,0.01598803]
[1762885023030,0.9236912,103320.0,103310.0,0.03779803]
[1762885023224,0.9236912,103320.0,103310.0,0.05997803]
[1762885024231,0.9236912,103320.0,103310.0,0.01598803]
[1762885024431,0.9246912,103320.0,103310.0,0.01598803]
[1762885024632,0.9256912,103320.0,103310.0,0.01598803]
[1762885025528,0.9256912,103320.0,103310.0,0.03779803]
[1762885025729,0.84930519,103320.0,103310.0,0.03779803]
[1762885025927,0.94611649,103320.0,103310.0,0.05997803]
[1762885027124,0.94611649,103320.0,103310.0,0.01379]
[1762885027326,0.0968207,103310.0,103300.0,0.05792526]
[1762885027526,0.27366488,103310.0,103300.0,0.06012329]
[1762885027727,0.41843992,103310.0,103300.0,0.15695339]
[1762885028130,0.41843992,103310.0,103300.0,0.03794329]
[1762885028334,0.55443352,103310.0,103300.0,0.00234329]
[1762885030034,0.55443352,103310.0,103300.0,0.00014526]
[1762885030338,0.55443352,103310.0,103280.0,0.03568973]
[1762885030339,0.0968395,103290.0,103280.0,0.03568973]
[1762885030528,0.77779728,103290.0,103280.0,0.06006776]
[1762885030836,0.92386094,103290.0,103280.0,0.06006776]
[1762885031134,0.51418366,103290.0,103280.0,0.15691656]
[1762885031337,0.67060255,103290.0,103280.0,0.15691656]
[1762885031538,0.67060255,103290.0,103280.0,0.15791656]
[1762885032043,0.76744205,103290.0,103280.0,0.15891656]
[1762885032234,0.39932205,103290.0,103280.0,0.06206776]
[1762885032435,0.76744205,103290.0,103280.0,0.06206776]
[1762885033141,0.76744205,103290.0,103280.0,0.15891656]
[1762885033448,0.76744205,103290.0,103280.0,0.06206776]
[1762885033830,0.76744205,103290.0,103280.0,0.15891656]
[1762885034037,0.76744205,103290.0,103280.0,0.06206776]
[1762885035538,0.76744205,103290.0,103280.0,0.15891656]
[1762885037243,0.67060255,103290.0,103280.0,0.15891656]
[1762885037543,0.76744205,103290.0,103280.0,0.15891656]
[1762885037836,0.00014526,103300.0,103280.0,0.47175434]
[1762885038037,0.25323379,103320.0,103310.0,0.05778]
[1762885038237,0.57185268,103320.0,103310.0,0.05997803]
[1762885038436,0.71718755,103320.0,103310.0,0.15679873]
[1762885038839,0.463865,103320.0,103310.0,0.15679873]
[1762885039140,0.40634617,103320.0,103310.0,0.15679873]
[1762885039446,0.465865,103320.0,103310.0,0.15679873]
[1762885039650,0.14733487,103320.0,103310.0,0.15679873]
[1762885039842,0.51549487,103320.0,103310.0,0.15679873]
[1762885040242,0.671825,103320.0,103310.0,0.15679873]
[1762885040746,0.672825,103320.0,103310.0,0.15679873]
[1762885040947,0.51649487,103320.0,103310.0,0.15679873]
[1762885041241,0.8988709,103320.0,103310.0,0.05997803]
[1762885041450,0.8988709,103320.0,103310.0,0.00219803]
[1762885042241,0.8968709,103320.0,103310.0,0.00219803]
[1762885042633,0.8978709,103320.0,103310.0,0.11204873]
[1762885042838,0.8978709,103320.0,103310.0,0.01522803]
[1762885043248,0.8988709,103320.0,103310.0,0.01522803]
[1762885043951,0.8988709,103320.0,103310.0,0.00219803]
[1762885044444,0.0968207,103310.0,103300.0,0.05819526]
[1762885044748,0.52930889,103310.0,103300.0,0.06039329]
[1762885045336,0.52930889,103310.0,103300.0,0.15722339]
[1762885045540,0.52930889,103310.0,103300.0,0.06039329]
[1762885045740,0.52930889,103310.0,103300.0,0.01613329]
[1762885046048,0.52930889,103310.0,103300.0,0.00014526]
[1762885046650,0.53030889,103310.0,103300.0,0.00014526]
[1762885047049,0.53130889,103310.0,103300.0,0.00014526]
[1762885047849,0.53130889,103310.0,103300.0,0.09697536]
[1762885048148,0.53130889,103310.0,103300.0,0.01317526]
[1762885049444,0.53130889,103310.0,103300.0,0.00014526]
[1762885049852,0.58340342,103310.0,103300.0,0.00014526]
[1762885050043,0.0968301,103300.0,103290.0,0.01379]
[1762885050243,0.75151483,103300.0,103290.0,0.01379]
[1762885050544,0.89660257,103300.0,103290.0,0.01379]
[1762885050742,0.52848257,103300.0,103290.0,0.01379]
[1762885051051,0.51320774,103300.0,103290.0,0.15708753]
[1762885053453,0.36812,103300.0,103290.0,0.15708753]
[1762885053646,0.68812,103300.0,103290.0,0.15708753]
[1762885054653,0.32,103300.0,103290.0,0.15708753]
[1762885054850,0.68812,103300.0,103290.0,0.15808753]
[1762885055350,0.68812,103300.0,103290.0,0.15908753]
[1762885055551,0.32,103300.0,103290.0,0.1938123]
[1762885055746,0.32,103300.0,103290.0,0.24605483]
[1762885056052,0.32,103300.0,103290.0,0.48809483]
[1762885056254,0.285,103300.0,103290.0,0.48809483]
[1762885056452,0.36826526,103310.0,103300.0,0.05729]
[1762885056654,0.66826526,103310.0,103300.0,0.15631813]
[1762885056851,0.66826526,103310.0,103300.0,0.1910429]
[1762885057053,0.30014526,103310.0,103300.0,0.1910429]
[1762885057256,0.03622,103330.0,103320.0,0.1541013]
[1762885057454,0.791142,103330.0,103320.0,0.15629933]
[1762885057650,0.32622,103330.0,103320.0,0.15629933]
[1762885057959,0.69434,103330.0,103320.0,0.15629933]
[1762885058553,0.793142,103330.0,103320.0,0.15629933]
[1762885058952,0.795142,103330.0,103320.0,0.15629933]
[1762885059456,0.793142,103330.0,103320.0,0.15629933]
[1762885059658,0.793142,103330.0,103320.0,0.15729933]
[1762885059858,0.791142,103330.0,103320.0,0.15729933]
[1762885060058,0.791142,103330.0,103320.0,0.15829933]
[1762885060653,0.791142,103330.0,103320.0,0.15729933]
[1762885060958,0.791142,103330.0,103320.0,0.15629933]
[1762885062852,1.08675673,103330.0,103320.0,0.00219803]
[1762885063053,1.08675673,103330.0,103320.0,0.12128933]
[1762885063253,1.08675673,103330.0,103320.0,0.00219803]
[1762885064246,1.08775673,103330.0,103320.0,0.00219803]
[1762885064460,1.08875673,103330.0,103320.0,0.00219803]
[1762885066560,0.79875673,103330.0,103320.0,0.00219803]
[1762885067060,0.79875673,103330.0,103320.0,0.12128933]
[1762885067261,0.79875673,103330.0,103320.0,0.09900933]
[1762885067562,0.79875673,103330.0,103320.0,0.00219803]
[1762885070761,0.9441276,103330.0,103320.0,0.00219803]
[1762885072064,0.9441276,103330.0,103320.0,0.09900933]
[1762885072458,0.55171087,103330.0,103320.0,0.15611933]
[1762885072669,0.18359087,103330.0,103320.0,0.15611933]
[1762885072963,0.55163087,103330.0,103320.0,0.15611933]
[1762885073160,0.18359087,103330.0,103320.0,0.15611933]
[1762885073364,0.55163087,103330.0,103320.0,0.15611933]
[1762885073962,0.55063087,103330.0,103320.0,0.15611933]
[1762885074765,0.64643287,103330.0,103320.0,0.15611933]
[1762885079862,0.54963087,103330.0,103320.0,0.15611933]
[1762885080054,0.64643287,103330.0,103320.0,0.15611933]
[1762885080462,0.54963087,103330.0,103320.0,0.15611933]
[1762885080868,0.55063087,103330.0,103320.0,0.15611933]
[1762885081557,0.40526,103330.0,103320.0,0.15611933]
[1762885082065,0.41331,103330.0,103320.0,0.00219803]
[1762885082267,0.1330313,103320.0,103310.0,0.15434356]
[1762885082565,0.1330313,103320.0,103310.0,0.15654159]
[1762885084372,0.03622,103320.0,103310.0,0.15654159]
[1762885086175,0.03622,103320.0,103310.0,0.19126636]
[1762885086570,0.1330313,103320.0,103310.0,0.19126636]
[1762885087974,0.03622,103320.0,103310.0,0.19126636]
[1762885088276,0.5010649,103330.0,103320.0,0.1546613]
[1762885088474,0.521725,103330.0,103320.0,0.15685933]
[1762885088675,0.4249201,103330.0,103320.0,0.15685933]
[1762885089175,0.5217221,103330.0,103320.0,0.15685933]
[1762885089575,0.5216821,103330.0,103320.0,0.15685933]
[1762885090169,0.4248801,103330.0,103320.0,0.15685933]
[1762885091175,0.0568801,103330.0,103320.0,0.15685933]
[1762885091378,0.4248401,103330.0,103320.0,0.15685933]
[1762885091778,0.0206601,103330.0,103320.0,0.44342406]
[1762885091973,0.01825526,103340.0,103330.0,0.05785]
[1762885092173,0.40432526,103340.0,103330.0,0.15685003]
[1762885093686,0.40432526,103340.0,103330.0,0.15785003]
[1762885093981,0.40432526,103340.0,103330.0,0.15885003]
[1762885094981,0.50111786,103340.0,103330.0,0.15885003]
[1762885095868,0.40432526,103340.0,103330.0,0.15885003]
[1762885096272,0.40432526,103340.0,103330.0,0.15785003]
[1762885096781,0.40432526,103340.0,103330.0,0.15685003]
[1762885097280,0.01825526,103340.0,103330.0,0.15685003]
[1762885097467,0.00014526,103340.0,103330.0,0.15685003]
[1762885097671,0.03636526,103340.0,103330.0,0.15685003]
[1762885098680,0.03636526,103340.0,103330.0,0.15785003]
[1762885098873,0.03636526,103340.0,103330.0,0.15885003]
[1762885100887,0.13315786,103340.0,103330.0,0.15885003]
[1762885101192,0.03636526,103340.0,103330.0,0.15885003]
[1762885104082,0.05691537,103340.0,103330.0,0.15885003]
[1762885104987,0.05691537,103340.0,103330.0,0.31506225]
[1762885105187,0.03880537,103340.0,103330.0,0.15885003]
[1762885105386,0.05691537,103340.0,103330.0,0.31506225]
[1762885105678,0.02069537,103340.0,103330.0,0.31506225]
[1762885105886,0.46613241,103340.0,103330.0,0.00419803]
[1762885106086,0.46613241,103340.0,103330.0,0.15937993]
[1762885107081,0.46613241,103340.0,103330.0,0.06257803]
[1762885107782,0.46913241,103340.0,103330.0,0.06057803]
[1762885108188,0.46913241,103340.0,103330.0,0.15737993]
[1762885108582,0.46813241,103340.0,103330.0,0.15737993]
[1762885109088,0.46713241,103340.0,103330.0,0.15737993]
[1762885109286,0.46813241,103340.0,103330.0,0.15737993]
[1762885110382,0.37133981,103340.0,103330.0,0.15737993]
[1762885110884,0.21512759,103340.0,103330.0,0.15737993]
[1762885111088,0.31192019,103340.0,103330.0,0.15737993]
[1762885111483,0.31092019,103340.0,103330.0,0.15737993]
[1762885111678,0.21312759,103340.0,103330.0,0.15737993]
[1762885112483,0.58100759,103340.0,103330.0,0.31359215]
[1762885113989,0.67780019,103340.0,103330.0,0.31559215]
[1762885114285,0.21312759,103340.0,103330.0,0.31559215]
[1762885114486,0.38857537,103340.0,103330.0,0.31559215]
[1762885114686,0.02069537,103340.0,103330.0,0.31559215]
[1762885114986,0.03880537,103340.0,103330.0,0.31359215]
[1762885115592,0.03880537,103340.0,103330.0,0.31459215]
[1762885115996,0.02069537,103340.0,103330.0,0.31459215]
[1762885116794,0.02069537,103340.0,103330.0,0.31559215]
[1762885116992,0.03880537,103340.0,103330.0,0.31559215]
[1762885117689,0.02069537,103340.0,103330.0,0.31559215]
[1762885117895,0.03880537,103340.0,103330.0,0.31559215]
[1762885119394,0.02069537,103340.0,103330.0,0.31559215]
[1762885121894,0.15370797,103340.0,103330.0,0.31559215]
[1762885122394,0.05691537,103340.0,103330.0,0.31559215]
[1762885124395,0.02069537,103340.0,103330.0,0.31559215]
[1762885126688,0.03880537,103340.0,103330.0,0.31559215]
[1762885126892,0.21312759,103340.0,103330.0,0.15937993]
[1762885127497,0.30992019,103340.0,103330.0,0.15937993]
[1762885127697,0.21312759,103340.0,103330.0,0.15937993]
[1762885127899,0.46613241,103340.0,103330.0,0.15937993]
[1762885128498,0.83397241,103340.0,103330.0,0.15937993]
[1762885128700,0.83397241,103340.0,103330.0,0.15837993]
[1762885128995,0.67776019,103340.0,103330.0,0.15837993]
[1762885129598,0.67776019,103340.0,103330.0,0.15737993]
[1762885129898,0.83397241,103340.0,103330.0,0.15737993]
[1762885130393,0.73717981,103340.0,103330.0,0.15737993]
[1762885130594,0.58096759,103340.0,103330.0,0.15737993]
[1762885133497,0.58096759,103340.0,103330.0,0.31359215]
[1762885133798,0.56198759,103340.0,103330.0,0.31359215]
[1762885134000,0.40577537,103340.0,103330.0,0.31359215]
[1762885134189,0.40406,103340.0,103330.0,0.39627291]
[1762885134900,0.40506,103340.0,103330.0,0.40227291]
[1762885135500,0.40406,103340.0,103330.0,0.39827291]
[1762885135697,0.03636526,103350.0,103340.0,0.1538126]
[1762885135901,0.03636526,103350.0,103340.0,0.58592827]
[1762885136203,0.15621222,103380.0,103370.0,0.1182945]
[1762885136391,0.03622,103380.0,103370.0,0.40354857]
[1762885136592,0.55823905,103380.0,103370.0,0.42965525]
[1762885137019,0.54856533,103380.0,103370.0,0.42965525]
[1762885137303,0.40406,103380.0,103370.0,0.39484634]
[1762885137690,0.03622,103380.0,103370.0,0.39484634]
[1762885138095,0.40896526,103390.0,103380.0,0.0569]
[1762885138392,0.56517748,103390.0,103380.0,0.22105154]
[1762885138696,0.56517748,103390.0,103380.0,1.72105154]
[1762885139098,0.56517748,103390.0,103380.0,1.72305154]
[1762885139599,0.56517748,103390.0,103380.0,1.72105154]
[1762885139794,0.56517748,103390.0,103380.0,1.72205154]
[1762885139994,0.29412328,103390.0,103380.0,1.72205154]
[1762885140507,0.60419012,103390.0,103380.0,1.66515154]
[1762885140702,0.4389279,103390.0,103380.0,1.67903154]
[1762885140897,0.4389279,103390.0,103380.0,1.68103154]
[1762885141097,0.7099421,103390.0,103380.0,1.68103154]
[1762885141601,0.3240721,103390.0,103380.0,1.68103154]
[1762885141815,0.19737748,103390.0,103380.0,1.68203154]
[1762885142309,0.16115748,103390.0,103380.0,1.83824376]
[1762885142505,0.00494526,103390.0,103380.0,1.83824376]
[1762885142702,0.00494526,103390.0,103380.0,1.89038388]
[1762885143409,0.00494526,103390.0,103380.0,1.83824376]
[1762885143704,0.00494526,103390.0,103380.0,1.89038388]
[1762885143911,0.29412328,103390.0,103380.0,1.73365404]
[1762885144102,0.29412328,103390.0,103380.0,1.68151392]
[1762885144912,0.13791106,103390.0,103380.0,1.68151392]
[1762885145401,0.33302274,103390.0,103380.0,1.68151392]
[1762885146216,0.33302274,103390.0,103380.0,1.70749407]
[1762885146408,0.13791106,103390.0,103380.0,1.70749407]
[1762885147199,0.13791106,103390.0,103380.0,1.67273399]
[1762885147712,0.13791106,103390.0,103380.0,1.70749407]
[1762885147911,0.04116526,103390.0,103380.0,1.70749407]
[1762885148301,0.04116526,103390.0,103380.0,1.71584675]
[1762885148704,0.02305526,103390.0,103380.0,1.71384675]
[1762885148903,0.00494526,103390.0,103380.0,1.71384675]
[1762885149709,0.03622,103410.0,103400.0,0.1536364]
[1762885149906,0.23133168,103420.0,103410.0,0.1536271]
[1762885150108,0.59901168,103420.0,103410.0,0.23765801]
[1762885150314,0.54806429,103420.0,103410.0,0.23765801]
[1762885151107,0.54806429,103420.0,103410.0,0.23865801]
[1762885151919,0.54806429,103420.0,103410.0,0.18674574]
[1762885153719,0.54806429,103420.0,103410.0,0.25595874]
[1762885153915,0.54806429,103420.0,103410.0,0.18674574]
[1762885154116,0.54806429,103420.0,103410.0,0.25595874]
[1762885154607,0.4039,103420.0,103410.0,0.25595874]
[1762885155213,0.04111686,103430.0,103420.0,0.1536177]
[1762885155412,0.40875686,103430.0,103420.0,0.25494934]
[1762885155613,0.55383717,103430.0,103420.0,0.25494934]
[1762885156224,0.40875686,103430.0,103420.0,0.25494934]
[1762885156418,0.40875686,103430.0,103420.0,0.25794934]
[1762885157628,0.40875686,103430.0,103420.0,0.18873634]
[1762885158020,0.40875686,103430.0,103420.0,0.25777978]
[1762885158319,0.40875686,103430.0,103420.0,0.19073634]
[1762885159223,0.70057694,103430.0,103420.0,0.1630647]
[1762885159425,0.60386854,103430.0,103420.0,0.2597824]
[1762885159722,0.70057694,103430.0,103420.0,0.2597824]
[1762885160228,0.70962694,103430.0,103420.0,0.1061647]
[1762885160719,0.85544632,103430.0,103420.0,0.1061647]
[1762885160920,0.94638037,103430.0,103420.0,0.03711864]
[1762885161324,0.94638037,103430.0,103420.0,0.1061647]
[1762885161519,0.94638037,103430.0,103420.0,0.03711864]
[1762885161826,0.94638037,103430.0,103420.0,0.08697044]
[1762885162220,0.94838037,103430.0,103420.0,0.08397044]
[1762885162419,0.94838037,103430.0,103420.0,0.08597044]
[1762885162929,0.94638037,103430.0,103420.0,0.08597044]
[1762885163229,0.94638037,103430.0,103420.0,0.08797044]
[1762885164524,0.94638037,103430.0,103420.0,0.03611864]
[1762885165222,0.94638037,103430.0,103420.0,0.08806848]
[1762885165420,0.94638037,103430.0,103420.0,0.03611864]
[1762885165929,0.94638037,103430.0,103420.0,0.08811151]
[1762885166124,0.94638037,103430.0,103420.0,0.03611864]
[1762885166627,0.0967177,103420.0,103410.0,0.06904606]
[1762885166822,0.25278011,103420.0,103410.0,0.03728803]
[1762885167021,0.39798719,103420.0,103410.0,0.03728803]
[1762885167624,0.39798719,103420.0,103410.0,0.01537803]
[1762885168029,0.5540496,103420.0,103410.0,0.01537803]
[1762885168221,0.5550496,103420.0,103410.0,0.06741906]
[1762885168417,0.39898719,103420.0,103410.0,0.06741906]
[1762885170331,0.39898719,103420.0,103410.0,0.11177906]
[1762885171429,0.39898719,103420.0,103410.0,0.20850616]
[1762885171731,0.39898719,103420.0,103410.0,0.11177906]
[1762885171926,0.66982949,103420.0,103410.0,0.12878409]
[1762885172228,0.9226096,103420.0,103410.0,0.12878409]
[1762885172428,0.9226096,103420.0,103410.0,0.01537803]
[1762885172628,0.9226096,103420.0,103410.0,0.06745425]
[1762885173627,0.0967271,103410.0,103400.0,0.01402526]
[1762885173932,0.55408808,103410.0,103400.0,0.05223381]
[1762885174429,0.0967458,103390.0,103380.0,0.01318]
[1762885174732,0.76653377,103390.0,103380.0,0.01537803]
[1762885174923,0.89674702,103390.0,103380.0,0.03728803]
[1762885175123,0.89674702,103390.0,103380.0,0.15649323]
[1762885175425,0.80000122,103390.0,103380.0,0.15649323]
[1762885175622,0.89674702,103390.0,103380.0,0.15649323]
[1762885175824,0.89674702,103390.0,103380.0,0.15749323]
[1762885177028,0.89674702,103390.0,103380.0,0.06073803]
[1762885177228,0.89674702,103390.0,103380.0,0.05973803]
[1762885177418,0.89674702,103390.0,103380.0,0.06273803]
[1762885177622,0.89674702,103390.0,103380.0,0.15949323]
[1762885178032,0.89674702,103390.0,103380.0,0.06173803]
[1762885178033,0.89774702,103390.0,103380.0,0.06173803]
[1762885178523,0.89774702,103390.0,103380.0,0.05973803]
[1762885178923,0.89774702,103390.0,103380.0,0.15649323]
[1762885179125,0.89774702,103390.0,103380.0,0.05973803]
[1762885179933,0.89774702,103390.0,103380.0,0.15649323]
[1762885180334,0.80100122,103390.0,103380.0,0.15749323]
[1762885181134,0.89774702,103390.0,103380.0,0.15649323]
[1762885182432,0.43304122,103390.0,103380.0,0.15649323]
[1762885182736,0.89766702,103390.0,103380.0,0.15649323]
[1762885183242,0.80092122,103390.0,103380.0,0.15649323]
[1762885183437,0.51456556,103390.0,103380.0,0.15649323]
[1762885184543,0.51356556,103390.0,103380.0,0.15649323]
[1762885184734,0.51356556,103390.0,103380.0,0.15749323]
[1762885185645,0.89658702,103390.0,103380.0,0.15749323]
[1762885186940,0.51356556,103390.0,103380.0,0.15749323]
[1762885187149,0.79984122,103390.0,103380.0,0.15749323]
[1762885187336,0.89658702,103390.0,103380.0,0.15749323]
[1762885188847,0.79984122,103390.0,103380.0,0.15749323]
[1762885190345,0.51356556,103390.0,103380.0,0.15749323]
[1762885190842,0.61031136,103390.0,103380.0,0.15749323]
[1762885191151,0.89658702,103390.0,103380.0,0.15749323]
[1762885191751,0.79984122,103390.0,103380.0,0.15749323]
[1762885192758,1.16064122,103390.0,103380.0,0.15749323]
[1762885193056,0.87436556,103390.0,103380.0,0.15749323]
[1762885194851,1.12721088,103390.0,103380.0,0.15749323]
[1762885196159,1.03046508,103390.0,103380.0,0.15749323]
[1762885196458,1.03046508,103390.0,103380.0,0.1835249]
[1762885196851,1.03046508,103390.0,103380.0,0.1825249]
[1762885197053,0.3608,103390.0,103380.0,0.1845249]
[1762885197257,0.51704478,103400.0,103390.0,0.05587]
[1762885197458,0.88468478,103400.0,103390.0,0.05806803]
[1762885197760,1.12612674,103400.0,103390.0,0.15481383]
[1762885199362,1.12612674,103400.0,103390.0,0.15581383]
[1762885200361,1.02938774,103400.0,103390.0,0.15581383]
[1762885201865,0.00014526,103400.0,103390.0,0.33794502]
[1762885202054,0.36778526,103400.0,103390.0,0.31191335]
[1762885202256,0.36778526,103400.0,103390.0,0.20790372]
[1762885202454,0.00014526,103400.0,103390.0,0.20790372]
[1762885203756,0.00014526,103400.0,103390.0,0.24269]
[1762885204262,0.00014526,103400.0,103390.0,0.19060011]
[1762885205057,0.00014526,103400.0,103390.0,0.70749963]
[1762885205256,0.3608,103420.0,103410.0,0.1523871]
[1762885205257,0.61361722,103420.0,103410.0,0.1523871]
[1762885205461,0.98125722,103420.0,103410.0,0.18065724]
[1762885205664,1.1269808,103420.0,103410.0,0.18065724]
[1762885205861,0.87416358,103420.0,103410.0,0.18065724]
[1762885206062,0.6694631,103420.0,103410.0,0.18065724]
[1762885206260,0.6694631,103420.0,103410.0,0.15458513]
[1762885206457,0.6704631,103420.0,103410.0,0.15458513]
[1762885206658,0.6704631,103420.0,103410.0,0.18065724]
[1762885207057,0.51436358,103420.0,103410.0,0.18065724]
[1762885207256,0.7671809,103420.0,103410.0,0.18065724]
[1762885207455,0.7691809,103420.0,103410.0,0.18065724]
[1762885207859,1.1279809,103420.0,103410.0,0.15458513]
[1762885208064,1.1279809,103420.0,103410.0,0.18065724]
[1762885208264,1.1269809,103420.0,103410.0,0.15558513]
[1762885208672,1.1269809,103420.0,103410.0,0.15658513]
[1762885208966,1.1269809,103420.0,103410.0,0.15558513]
[1762885209156,1.1269809,103420.0,103410.0,0.15758513]
[1762885209357,1.1269809,103420.0,103410.0,0.06085803]
[1762885209565,1.1269809,103420.0,103410.0,0.15758513]
[1762885209765,1.1269809,103420.0,103410.0,0.15558513]
[1762885209966,1.1269809,103420.0,103410.0,0.15658513]
[1762885210263,1.1269809,103420.0,103410.0,0.15558513]
[1762885210462,1.28308042,103420.0,103410.0,0.001]
[1762885210665,0.0967271,103410.0,103400.0,0.00014526]
[1762885210963,0.9149534,103410.0,103400.0,0.00014526]
[1762885211364,0.0967458,103390.0,103380.0,0.05579]
[1762885211565,0.98136532,103390.0,103380.0,0.15474323]
[1762885211765,1.12729267,103390.0,103380.0,0.15474323]
[1762885213368,1.12729267,103390.0,103380.0,0.05798803]
[1762885213758,1.12729267,103390.0,103380.0,0.15474323]
[1762885214564,1.12729267,103390.0,103380.0,0.15574323]
[1762885214873,1.12729267,103390.0,103380.0,0.15674323]
[1762885215059,1.12729267,103390.0,103380.0,0.15574323]
[1762885215568,1.12729267,103390.0,103380.0,0.05898803]
[1762885215868,1.03054687,103390.0,103380.0,0.15574323]
[1762885216259,1.12729267,103390.0,103380.0,0.18181534]
[1762885216768,1.12729267,103390.0,103380.0,0.08506014]
[1762885217261,1.48809267,103390.0,103380.0,0.06347014]
[1762885217462,1.48809267,103390.0,103380.0,0.00319803]
[1762885217463,1.64419219,103390.0,103380.0,0.00319803]
[1762885217864,1.64419219,103390.0,103380.0,0.001]
[1762885218271,0.0967552,103380.0,103370.0,0.06028737]
[1762885218466,0.76975424,103380.0,103370.0,0.0624854]
[1762885218769,0.76975424,103380.0,103370.0,0.18084]
[1762885219369,0.51689952,103380.0,103370.0,0.18084]
[1762885220372,0.15609952,103380.0,103370.0,0.18084]
[1762885220568,0.3608,103390.0,103380.0,0.1545052]
[1762885220774,0.98128532,103390.0,103380.0,0.15670323]
[1762885220973,1.12628724,103390.0,103380.0,0.15670323]
[1762885221967,1.12628724,103390.0,103380.0,0.15770323]
[1762885222965,1.12630147,103390.0,103380.0,0.15770323]
[1762885223274,1.02955567,103390.0,103380.0,0.15770323]
[1762885223764,0.66191567,103390.0,103380.0,0.15770323]
[1762885223965,1.02955567,103390.0,103380.0,0.15770323]
[1762885227365,0.30111567,103390.0,103380.0,0.15770323]
[1762885227565,0.66875567,103390.0,103380.0,0.15770323]
[1762885227873,0.52375375,103390.0,103380.0,0.15770323]
[1762885228071,0.36764,103390.0,103380.0,0.15770323]
[1762885228273,0.15611375,103390.0,103380.0,0.15770323]
[1762885228473,0.52375375,103390.0,103380.0,0.15770323]
[1762885228672,0.62049955,103390.0,103380.0,0.15770323]
[1762885229867,1.1262296,103390.0,103380.0,0.15770323]
[1762885230070,1.1262296,103390.0,103380.0,0.06094803]
[1762885230265,1.1262296,103390.0,103380.0,0.15770323]
[1762885231579,1.0294838,103390.0,103380.0,0.15770323]
[1762885231781,0.6686838,103390.0,103380.0,0.15770323]
[1762885232080,1.1262296,103390.0,103380.0,0.06094803]
[1762885232880,1.1262296,103390.0,103380.0,0.15770323]
[1762885233283,0.87337005,103390.0,103380.0,0.15770323]
[1762885233575,1.0294838,103390.0,103380.0,0.15770323]
[1762885234782,1.1262296,103390.0,103380.0,0.15770323]
[1762885235381,0.6686838,103390.0,103380.0,0.15770323]
[1762885235880,1.0294838,103390.0,103380.0,0.15770323]
[1762885236271,1.0294838,103390.0,103380.0,0.18377534]
[1762885236682,1.1262296,103390.0,103380.0,0.18377534]
[1762885236977,1.0294838,103390.0,103380.0,0.18377534]
[1762885237568,0.3010438,103390.0,103380.0,0.3746519]
[1762885237772,0.51705901,103400.0,103390.0,0.1562158]
[1762885237978,0.88473901,103400.0,103390.0,0.18447754]
[1762885238181,1.0293697,103400.0,103390.0,0.18447754]
[1762885238981,1.1271062,103400.0,103390.0,0.18447754]
[1762885239182,1.1271062,103400.0,103390.0,0.15841383]
[1762885239382,0.87425595,103400.0,103390.0,0.15841383]
[1762885239583,1.0303697,103400.0,103390.0,0.15841383]
[1762885239785,0.87425595,103400.0,103390.0,0.15841383]
[1762885240077,1.0303697,103400.0,103390.0,0.15841383]
[1762885240281,1.0303697,103400.0,103390.0,0.19317664]
[1762885240669,1.3203697,103400.0,103390.0,0.19317664]
[1762885240870,1.4171062,103400.0,103390.0,0.19317664]
[1762885242682,1.57321995,103400.0,103390.0,0.19317664]
[1762885243778,1.57321995,103400.0,103390.0,0.15841383]
[1762885243974,1.57321995,103400.0,103390.0,0.08776653]
[1762885244183,1.7293337,103400.0,103390.0,0.02829653]
[1762885244584,1.57321995,103400.0,103390.0,0.02829653]
[1762885244784,1.7293337,103400.0,103390.0,0.0260985]
[1762885244988,1.57321995,103400.0,103390.0,0.0260985]
[1762885246585,1.57321995,103400.0,103390.0,0.08776653]
[1762885246889,1.57321995,103400.0,103390.0,0.06444653]
[1762885247287,1.57321995,103400.0,103390.0,0.18451233]
[1762885247676,1.57321995,103400.0,103390.0,0.08776653]
[1762885247875,1.57317995,103400.0,103390.0,0.18451233]
[1762885248288,1.47644345,103400.0,103390.0,0.18451233]
[1762885255890,1.57317995,103400.0,103390.0,0.18451233]
[1762885257589,0.65878526,103400.0,103390.0,0.71009039]
[1762885257790,0.81489901,103400.0,103390.0,0.76218028]
[1762885258191,0.81489901,103400.0,103390.0,0.76216497]
[1762885258793,0.65878526,103400.0,103390.0,0.76216497]
[1762885258992,0.81489901,103400.0,103390.0,0.76216497]
[1762885261085,0.29114526,103400.0,103390.0,1.00396497]
[1762885261285,0.29114526,103400.0,103390.0,0.96921747]
[1762885261486,0.29114526,103400.0,103390.0,0.81310372]
[1762885261686,0.29114526,103400.0,103390.0,0.72741747]
[1762885261883,0.29114526,103400.0,103390.0,0.81310372]
[1762885262287,0.29114526,103400.0,103390.0,0.96921747]
[1762885263196,0.29114526,103400.0,103390.0,0.72741747]
[1762885264994,0.29114526,103400.0,103390.0,0.96921747]
[1762885265195,0.29114526,103400.0,103390.0,0.72741747]
[1762885265396,0.29114526,103400.0,103390.0,0.96921747]
[1762885266393,0.29114526,103400.0,103390.0,0.95181219]
[1762885266593,0.29114526,103400.0,103390.0,0.71001219]
[1762885266995,0.29114526,103400.0,103390.0,0.95181219]
[1762885267191,0.29114526,103400.0,103390.0,0.71001219]
[1762885267392,0.29114526,103400.0,103390.0,0.95181219]
[1762885268193,0.29114526,103400.0,103390.0,0.71001219]
[1762885268889,0.29114526,103400.0,103390.0,0.55389844]
[1762885269091,0.29114526,103400.0,103390.0,0.71001219]
[1762885269797,0.52367375,103420.0,103410.0,0.1097071]